bitfinex-derivatives/quotes_BTCF0:USTF0_20250508
["timestamp","ask_amount","ask_price","bid_price","bid_amount"]
[1746671428223,0.16201,98790.0,98784.0,0.5288]
[1746671428425,0.2024497,98785.0,98784.0,0.5288]
[1746671428622,0.2024866,98767.0,98757.0,0.3608]
[1746671428821,0.2024866,98767.0,98751.0,0.3608]
[1746671429028,0.0506145,98781.0,98751.0,0.3608]
[1746671429029,0.050609,98792.0,98759.0,0.3608]
[1746671429222,0.0506121,98786.0,98775.0,0.3608]
[1746671429418,0.1129,98785.0,98775.0,0.3608]
[1746671429625,0.1129,98785.0,98784.0,0.003]
[1746671430326,0.3153497,98785.0,98784.0,0.003]
[1746671430927,0.3153497,98785.0,98784.0,0.007]
[1746671431329,0.41658171,98785.0,98784.0,0.004]
[1746671431628,0.3153497,98785.0,98784.0,0.004]
[1746671432228,0.2809,98785.0,98784.0,0.004]
[1746671432428,0.2809,98785.0,98784.0,0.00270732]
[1746671433030,0.2809,98785.0,98784.0,0.006]
[1746671433232,0.1129,98785.0,98784.0,0.006]
[1746671433536,0.3153497,98785.0,98784.0,0.002]
[1746671433836,0.3153497,98785.0,98784.0,0.006]
[1746671434241,0.3153497,98785.0,98784.0,0.005]
[1746671434537,0.1129,98785.0,98784.0,0.005]
[1746671434728,0.1129,98785.0,98784.0,0.002]
[1746671434930,0.1129,98785.0,98784.0,0.005]
[1746671435232,0.1129,98785.0,98784.0,0.006]
[1746671435824,0.1129,98785.0,98784.0,0.003]
[1746671436130,0.1129,98785.0,98784.0,0.006]
[1746671436335,0.1129,98785.0,98784.0,0.004]
[1746671438130,0.1137,98789.0,98784.0,0.004]
[1746671438329,0.1091,98788.0,98784.0,0.004]
[1746671438530,0.1091,98788.0,98787.0,0.3608]
[1746671438738,0.2024135,98803.0,98787.0,0.3608]
[1746671438931,0.1145,98802.0,98790.0,0.13782999]
[1746671439132,0.1145,98802.0,98797.0,0.3608]
[1746671439337,0.1145,98810.0,98798.0,0.31656]
[1746671439539,0.1145,98810.0,98800.0,0.13782999]
[1746671440234,0.001,98802.0,98800.0,0.13782999]
[1746671440426,0.001,98802.0,98798.0,0.31656]
[1746671440834,0.1155,98810.0,98798.0,0.31656]
[1746671441035,0.202409,98805.0,98798.0,0.31656]
[1746671441235,0.2024231,98798.0,98797.0,0.3608]
[1746671441429,0.2024231,98798.0,98794.0,0.0894]
[1746671441430,0.2024436,98788.0,98787.0,0.3608]
[1746671441631,0.3608,98788.0,98773.0,0.4502]
[1746671441839,0.2024669,98777.0,98773.0,0.4602]
[1746671442036,0.1079,98776.0,98773.0,0.4602]
[1746671442240,0.310369,98776.0,98773.0,0.4602]
[1746671442641,0.2024723,98774.0,98773.0,0.4502]
[1746671442840,0.1585172,98776.0,98759.0,0.0894]
[1746671442841,0.2024743,98773.0,98759.0,0.0894]
[1746671443146,0.4783743,98773.0,98759.0,0.0894]
[1746671443348,0.2024805,98770.0,98769.0,6.096e-05]
[1746671443639,0.5632805,98770.0,98769.0,6.096e-05]
[1746671444031,0.2024805,98770.0,98769.0,6.096e-05]
[1746671444241,0.3704805,98770.0,98769.0,6.096e-05]
[1746671444437,0.03428,98770.0,98769.0,6.096e-05]
[1746671444633,0.0506029,98804.0,98769.0,0.81790496]
[1746671444832,0.3608,98811.0,98781.0,0.3608]
[1746671445038,0.0506029,98804.0,98794.0,0.3608]
[1746671445235,0.3608,98811.0,98794.0,0.3608]
[1746671445636,0.0506018,98806.0,98793.0,0.3608]
[1746671445841,0.3608,98811.0,98782.0,0.2241]
[1746671446039,0.2024224,98799.0,98784.0,0.3608]
[1746671446241,0.3608,98795.0,98774.0,0.01763244]
[1746671446544,0.3608,98781.0,98774.0,0.01763244]
[1746671446740,0.3608,98781.0,98774.0,0.00763244]
[1746671447132,0.2024743,98773.0,98772.0,0.00151864]
[1746671447442,0.5632743,98773.0,98772.0,0.00151864]
[1746671447835,0.6645183,98773.0,98772.0,0.00151864]
[1746671448238,0.2024805,98770.0,98769.0,6.096e-05]
[1746671448536,0.101244,98772.0,98765.0,0.0010125]
[1746671448742,0.1132,98771.0,98765.0,0.0010125]
[1746671449145,0.0506201,98770.0,98765.0,0.0010125]
[1746671449341,0.2812,98771.0,98765.0,0.0010125]
[1746671449539,0.2024845,98769.0,98765.0,0.0010125]
[1746671449843,0.2303,98768.0,98765.0,0.0060125]
[1746671450142,0.3983,98768.0,98765.0,0.0060125]
[1746671450442,0.2024887,98766.0,98765.0,0.0100125]
[1746671450844,0.2024887,98766.0,98765.0,0.0060125]
[1746671451047,0.3983,98768.0,98765.0,0.0100125]
[1746671451242,0.3704887,98766.0,98765.0,0.0100125]
[1746671451739,0.4717367,98766.0,98765.0,0.0100125]
[1746671452039,0.2025399,98741.0,98740.0,0.3608]
[1746671452935,0.4210399,98741.0,98740.0,0.3608]
[1746671453140,0.5890399,98741.0,98740.0,0.3608]
[1746671453538,0.6903159,98741.0,98740.0,0.3608]
[1746671453741,0.6903159,98741.0,98740.0,0.3668]
[1746671453941,1.0511159,98741.0,98740.0,0.006]
[1746671454140,1.3011159,98741.0,98740.0,0.006]
[1746671454336,1.0511159,98741.0,98740.0,0.006]
[1746671454539,0.2025461,98738.0,98737.0,0.00151918]
[1746671454937,0.3865,98741.0,98737.0,0.00151918]
[1746671455142,0.2025461,98738.0,98737.0,0.00151918]
[1746671456047,0.2025461,98738.0,98737.0,0.00351918]
[1746671456237,0.3705461,98738.0,98737.0,0.00351918]
[1746671456639,0.168,98738.0,98737.0,0.00351918]
[1746671456834,0.3705461,98738.0,98737.0,0.00351918]
[1746671457039,0.168,98738.0,98737.0,0.00351918]
[1746671457243,0.1086,98741.0,98737.0,0.12011918]
[1746671457444,0.1086,98741.0,98738.0,0.1054]
[1746671457639,0.2025074,98757.0,98738.0,0.1054]
[1746671457849,0.1089,98772.0,98746.0,0.3608]
[1746671458145,0.2024997,98761.0,98747.0,0.222]
[1746671458347,0.0506223,98766.0,98747.0,0.222]
[1746671458534,0.1639229,98765.0,98747.0,0.222]
[1746671458740,0.2024975,98762.0,98754.0,0.3608]
[1746671459042,0.2024975,98762.0,98755.0,0.222]
[1746671459043,0.2025048,98759.0,98755.0,0.222]
[1746671460052,0.2025053,98758.0,98755.0,0.222]
[1746671460242,0.2025092,98756.0,98755.0,0.222]
[1746671460846,0.2025112,98755.0,98754.0,0.3618]
[1746671461346,0.2025112,98755.0,98754.0,0.3648]
[1746671461648,0.2025112,98755.0,98754.0,0.3638]
[1746671461952,0.2025112,98755.0,98754.0,0.3608]
[1746671462146,0.3705112,98755.0,98754.0,0.3608]
[1746671462351,0.0506284,98754.0,98742.0,0.3608]
[1746671462652,0.2025308,98746.0,98742.0,0.3608]
[1746671462851,0.421732,98745.0,98742.0,0.3608]
[1746671463040,0.2025358,98743.0,98742.0,0.3608]
[1746671463246,0.2025358,98743.0,98742.0,0.36831977]
[1746671463451,0.2025358,98743.0,98742.0,0.3608]
[1746671464244,0.3705358,98743.0,98742.0,0.3608]
[1746671464751,0.3608,98787.0,98742.0,0.724072]
[1746671464951,0.1073,98776.0,98775.0,0.3608]
[1746671465447,0.1119,98786.0,98775.0,0.5288]
[1746671465652,0.001,98796.0,98785.0,0.3608]
[1746671465850,0.213,98795.0,98786.0,0.2161]
[1746671466157,0.213,98795.0,98786.0,0.43467558]
[1746671466356,0.2024334,98793.0,98786.0,0.43467558]
[1746671466846,0.2024356,98792.0,98786.0,0.43467558]
[1746671467041,0.2636076,98795.0,98786.0,0.43467558]
[1746671467246,0.2024416,98789.0,98786.0,0.26667558]
[1746671467551,0.2024456,98787.0,98786.0,0.26667558]
[1746671467855,0.2024477,98786.0,98785.0,0.3608]
[1746671468153,0.0506156,98779.0,98764.0,0.3608]
[1746671468352,0.2024815,98770.0,98764.0,0.3608]
[1746671468555,0.2024815,98770.0,98765.0,0.1064]
[1746671468753,0.1067,98769.0,98765.0,0.1064]
[1746671468960,0.2024866,98767.0,98766.0,0.1138]
[1746671469255,0.2024627,98779.0,98766.0,0.1138]
[1746671469445,0.2291,98782.0,98774.0,0.3608]
[1746671469645,0.2291,98782.0,98775.0,0.2283]
[1746671469949,0.2024702,98775.0,98774.0,0.3608]
[1746671470154,0.2024719,98775.0,98768.0,0.2283]
[1746671470355,0.1128,98774.0,98768.0,0.2283]
[1746671470655,0.1163,98782.0,98773.0,0.3608]
[1746671470854,0.0015,98790.0,98774.0,0.1138]
[1746671471048,0.0015,98790.0,98781.0,0.3608]
[1746671471349,0.0015,98790.0,98789.0,0.3608]
[1746671471849,0.2024538,98783.0,98782.0,0.2283]
[1746671472055,0.2024682,98776.0,98775.0,0.002]
[1746671472444,0.2024784,98771.0,98770.0,0.3608]
[1746671472648,0.168,98783.0,98770.0,0.3608]
[1746671472859,0.168,98783.0,98771.0,0.1118]
[1746671473153,0.1114,98788.0,98778.0,0.3608]
[1746671473365,0.1114,98788.0,98779.0,0.2184]
[1746671474059,0.0015,98790.0,98787.0,0.3608]
[1746671474257,0.0015,98790.0,98788.0,0.2184]
[1746671475161,0.0015,98790.0,98788.0,0.3941013]
[1746671475361,0.0015,98790.0,98789.0,0.1162]
[1746671475753,0.0015,98790.0,98789.0,0.3437]
[1746671476163,0.0015,98790.0,98789.0,0.5117]
[1746671476559,0.0015,98790.0,98789.0,0.5147]
[1746671478065,0.0015,98790.0,98789.0,0.5157]
[1746671478553,0.0015,98790.0,98789.0,0.5137]
[1746671478751,0.001,98796.0,98789.0,0.614924]
[1746671478955,0.3608,98832.0,98795.0,0.3608]
[1746671479159,0.1093,98824.0,98814.0,0.3608]
[1746671479367,0.2152,98824.0,98815.0,0.2284]
[1746671479560,0.2152,98824.0,98823.0,0.3608]
[1746671479956,0.4175698,98824.0,98823.0,0.3608]
[1746671480158,0.4175698,98824.0,98823.0,0.5288]
[1746671481660,0.4195698,98824.0,98823.0,0.5288]
[1746671481866,0.4215698,98824.0,98823.0,0.5288]
[1746671482260,0.004,98824.0,98823.0,0.5288]
[1746671482460,0.2023189,98850.0,98823.0,0.63999199]
[1746671482663,0.0015,98860.0,98823.0,0.63999199]
[1746671482664,0.2023122,98853.0,98848.0,0.3608]
[1746671482864,0.1093,98854.0,98848.0,0.3608]
[1746671482865,0.1093,98854.0,98849.0,0.2138]
[1746671483163,0.2023029,98857.0,98849.0,0.3818]
[1746671483367,0.2023166,98850.0,98849.0,0.168]
[1746671483665,0.0015,98860.0,98849.0,0.168]
[1746671483857,0.0015,98860.0,98854.0,0.3608]
[1746671484057,0.2033043,98856.0,98855.0,0.1075]
[1746671484366,0.2033043,98856.0,98855.0,0.2227]
[1746671484963,0.2123043,98856.0,98855.0,0.2227]
[1746671485272,0.2233043,98856.0,98855.0,0.3907]
[1746671485457,0.2253043,98856.0,98855.0,0.3917]
[1746671485970,0.023,98856.0,98855.0,0.3927]
[1746671486268,0.2253043,98856.0,98855.0,0.17]
[1746671486467,0.4320603,98856.0,98855.0,0.17]
[1746671486661,0.6820603,98856.0,98855.0,0.17]
[1746671486863,0.2023555,98831.0,98830.0,0.1152]
[1746671487268,0.2023555,98831.0,98830.0,0.2303]
[1746671487673,0.2023575,98830.0,98829.0,0.3608]
[1746671487873,0.2247,98831.0,98829.0,0.3608]
[1746671488166,0.1118,98830.0,98829.0,0.5288]
[1746671488372,0.003,98831.0,98829.0,0.5288]
[1746671488672,0.003,98831.0,98830.0,0.3608]
[1746671488859,0.0505783,98852.0,98830.0,0.836284]
[1746671489060,0.2023309,98843.0,98842.0,0.3608]
[1746671490173,0.2023309,98843.0,98842.0,0.5288]
[1746671490566,0.2063309,98843.0,98842.0,0.5288]
[1746671491882,0.2103309,98843.0,98842.0,0.5288]
[1746671492877,0.008,98843.0,98842.0,0.5288]
[1746671493270,0.3608,98881.0,98842.0,0.639972]
[1746671493469,0.2033064,98856.0,98854.0,0.3608]
[1746671493779,0.001,98856.0,98854.0,0.3608]
[1746671493970,0.001,98856.0,98855.0,0.1166]
[1746671494167,0.0015,98860.0,98855.0,0.2846]
[1746671494367,0.33157783,98882.0,98857.0,0.3608]
[1746671494570,0.2022654,98875.0,98874.0,0.3608]
[1746671494970,0.2022759,98872.0,98865.0,0.3608]
[1746671495165,0.1134,98876.0,98865.0,0.5288]
[1746671495374,0.2022702,98873.0,98865.0,0.5288]
[1746671495575,0.2528376,98873.0,98865.0,0.5288]
[1746671495872,0.1139,98875.0,98865.0,0.5288]
[1746671496076,0.012,98875.0,98874.0,0.3618]
[1746671496580,0.2142654,98875.0,98874.0,0.3618]
[1746671496979,0.012,98875.0,98874.0,0.3618]
[1746671497178,0.2142654,98875.0,98874.0,0.3618]
[1746671497380,0.3088654,98875.0,98874.0,0.3608]
[1746671498081,0.3168654,98875.0,98874.0,0.58022513]
[1746671498282,0.3168654,98875.0,98874.0,0.168]
[1746671498578,0.3168654,98875.0,98874.0,0.169]
[1746671498881,0.3278654,98875.0,98874.0,0.15128842]
[1746671499077,0.3278654,98875.0,98874.0,0.001]
[1746671499379,0.2022713,98873.0,98870.0,0.04988152]
[1746671499573,0.1095,98872.0,98861.0,0.3608]
[1746671499773,0.1095,98872.0,98861.0,0.4683]
[1746671499974,0.3117748,98872.0,98861.0,0.4683]
[1746671500172,0.3117748,98872.0,98861.0,0.68699128]
[1746671500374,0.2022796,98870.0,98861.0,0.68699128]
[1746671500677,0.2528487,98870.0,98861.0,0.68699128]
[1746671500877,0.2022798,98868.0,98861.0,0.68699128]
[1746671501176,0.2022896,98864.0,98861.0,0.68699128]
[1746671501376,0.1095,98863.0,98861.0,0.68699128]
[1746671501681,0.309792,98862.0,98861.0,0.68699128]
[1746671502074,0.309792,98862.0,98861.0,0.51899128]
[1746671502279,0.309792,98862.0,98861.0,0.41149128]
[1746671502985,0.309792,98862.0,98861.0,0.05069128]
[1746671503183,0.2023309,98843.0,98842.0,0.36231757]
[1746671503681,0.2023272,98845.0,98842.0,0.36231757]
[1746671503878,0.0505792,98850.0,98843.0,0.1101]
[1746671504075,0.0673208,98869.0,98843.0,0.324064]
[1746671504282,0.0673208,98869.0,98859.0,0.13764184]
[1746671504283,0.2022835,98868.0,98859.0,0.13764184]
[1746671504473,0.2022835,98868.0,98860.0,0.225]
[1746671504786,0.3147827,98867.0,98860.0,0.225]
[1746671505275,0.3147827,98867.0,98860.0,0.393]
[1746671505585,0.202289,98865.0,98860.0,0.393]
[1746671505885,0.2022941,98861.0,98860.0,0.393]
[1746671506069,0.2022941,98861.0,98860.0,0.168]
[1746671506275,0.2022901,98863.0,98858.0,0.2242]
[1746671506476,0.1133,98860.0,98858.0,0.2242]
[1746671506678,0.2042823,98867.0,98858.0,0.2242]
[1746671506878,0.2022859,98865.0,98858.0,0.2242]
[1746671507180,0.002,98861.0,98858.0,0.3922]
[1746671507379,0.204296,98861.0,98858.0,0.3922]
[1746671507581,0.2265,98860.0,98858.0,0.3922]
[1746671507885,0.1133,98860.0,98858.0,0.3922]
[1746671508079,0.1133,98860.0,98858.0,0.2242]
[1746671508982,0.2023023,98857.0,98856.0,0.3608]
[1746671509978,0.5024,98860.0,98856.0,0.3608]
[1746671510281,0.003,98860.0,98856.0,0.51108784]
[1746671510483,0.001,98860.0,98857.0,0.2214]
[1746671510683,0.2022888,98864.0,98857.0,0.2214]
[1746671510991,0.1144,98866.0,98857.0,0.2214]
[1746671511177,0.0505726,98863.0,98857.0,0.2214]
[1746671511485,0.001,98860.0,98857.0,0.2214]
[1746671511683,0.2023002,98858.0,98857.0,0.2214]
[1746671511983,0.2023309,98843.0,98840.0,0.10536]
[1746671512287,0.2023229,98848.0,98842.0,0.42241958]
[1746671512481,0.2224,98847.0,98842.0,0.42241958]
[1746671512878,0.0505813,98846.0,98842.0,0.42241958]
[1746671513077,0.2023309,98844.0,98842.0,0.54641958]
[1746671513278,0.3107309,98843.0,98842.0,0.54641958]
[1746671513785,0.3107309,98843.0,98842.0,0.00351757]
[1746671513980,0.2023555,98831.0,98830.0,0.00151795]
[1746671514482,0.168,98843.0,98830.0,0.46350195]
[1746671514681,0.168,98843.0,98838.0,0.3608]
[1746671514881,0.168,98843.0,98842.0,0.002]
[1746671515081,0.20232,98849.0,98842.0,0.17]
[1746671515285,0.3181215,98848.0,98846.0,0.3608]
[1746671515479,0.1158,98848.0,98847.0,0.2357]
[1746671515680,0.3181207,98848.0,98847.0,0.2357]
[1746671516183,0.3181207,98848.0,98847.0,0.4037]
[1746671516388,0.3181207,98848.0,98847.0,0.2873]
[1746671517189,0.3181207,98848.0,98847.0,0.2883]
[1746671517588,0.3181207,98848.0,98847.0,0.169]
[1746671517892,0.4192847,98848.0,98847.0,0.169]
[1746671518083,0.5872847,98848.0,98847.0,0.169]
[1746671518287,0.2023534,98832.0,98831.0,0.10536]
[1746671518587,0.2023534,98832.0,98831.0,0.46616]
[1746671518789,0.2023534,98832.0,98831.0,0.3608]
[1746671519090,0.2023555,98831.0,98822.0,0.41154226]
[1746671519288,0.5526555,98831.0,98822.0,0.41154226]
[1746671520091,0.7206555,98831.0,98822.0,0.41154226]
[1746671520291,0.7206555,98831.0,98830.0,0.00551795]
[1746671520884,0.7206555,98831.0,98830.0,0.00151795]
[1746671521193,0.5526555,98831.0,98830.0,0.00451795]
[1746671521388,0.2023383,98840.0,98830.0,0.00451795]
[1746671521589,0.1233,98835.0,98831.0,0.232]
[1746671521891,0.2023534,98833.0,98831.0,0.232]
[1746671522198,0.3256534,98832.0,98831.0,0.232]
[1746671522786,0.2023555,98831.0,98830.0,0.00651795]
[1746671522994,0.3186555,98831.0,98830.0,0.00351795]
[1746671523190,0.3608,98858.0,98830.0,0.36431795]
[1746671523490,0.1233,98843.0,98839.0,0.3608]
[1746671523682,0.1163,98857.0,98840.0,0.2384]
[1746671523887,0.2023146,98851.0,98850.0,0.3608]
[1746671524078,0.0505771,98854.0,98850.0,0.5288]
[1746671524280,0.1176,98853.0,98851.0,0.2384]
[1746671524787,0.2023125,98852.0,98851.0,0.2384]
[1746671524988,0.13764184,98870.0,98850.0,0.5288]
[1746671524989,0.2023146,98851.0,98850.0,0.5288]
[1746671525187,0.2023146,98851.0,98850.0,0.3608]
[1746671525793,0.4379146,98851.0,98850.0,0.3608]
[1746671526196,0.6059146,98851.0,98850.0,0.3608]
[1746671526588,0.6069146,98851.0,98850.0,0.3608]
[1746671526986,0.0505829,98843.0,98830.0,0.00151795]
[1746671527291,0.2023555,98831.0,98830.0,0.00151795]
[1746671528597,0.4410555,98831.0,98830.0,0.00151795]
[1746671529194,0.2387,98831.0,98830.0,0.00151795]
[1746671529395,0.3245555,98831.0,98830.0,0.00451795]
[1746671529694,0.050582,98845.0,98830.0,0.00451795]
[1746671529895,0.2023336,98843.0,98838.0,0.3608]
[1746671530094,0.2023336,98843.0,98839.0,0.2412]
[1746671530295,0.202335,98841.0,98839.0,0.2412]
[1746671530499,0.1222,98852.0,98839.0,0.2412]
[1746671530699,0.0505735,98861.0,98847.0,0.3608]
[1746671530700,0.118,98851.0,98847.0,0.3608]
[1746671530890,0.118,98851.0,98848.0,0.2412]
[1746671531491,0.3708966,98851.0,98848.0,0.2412]
[1746671532295,0.3203178,98851.0,98848.0,0.2412]
[1746671532697,0.3203178,98851.0,98848.0,0.2442]
[1746671533097,0.3708964,98851.0,98848.0,0.2442]
[1746671533500,0.2023186,98849.0,98848.0,0.2412]
[1746671533702,0.2023186,98849.0,98848.0,0.2432]
[1746671533902,0.2023186,98849.0,98848.0,0.2452]
[1746671534091,0.2023186,98849.0,98848.0,0.4132]
[1746671535302,0.2023186,98849.0,98848.0,0.2452]
[1746671535502,0.118,98851.0,98848.0,0.2452]
[1746671536001,0.3203165,98851.0,98848.0,0.2452]
[1746671536205,0.3203165,98851.0,98848.0,0.4132]
[1746671536395,0.3203165,98851.0,98848.0,0.4122]
[1746671536701,0.118,98851.0,98848.0,0.4122]
[1746671537088,0.118,98851.0,98848.0,0.4132]
[1746671537698,0.118,98851.0,98848.0,0.4142]
[1746671537996,0.00028785,98850.0,98848.0,0.4142]
[1746671538201,0.00028785,98850.0,98848.0,0.4132]
[1746671538397,0.11508785,98850.0,98848.0,0.4132]
[1746671538799,0.11508785,98850.0,98848.0,0.4142]
[1746671539698,0.11508785,98850.0,98848.0,0.4132]
[1746671539904,0.00028785,98850.0,98848.0,0.4132]
[1746671540204,0.00028785,98850.0,98849.0,0.1299]
[1746671540400,0.00028785,98850.0,98849.0,0.3708]
[1746671541301,0.00028785,98850.0,98849.0,0.64828]
[1746671541498,0.0015,98860.0,98849.0,0.64828]
[1746671541499,0.00146001,98860.0,98850.0,0.13764184]
[1746671541699,0.00146001,98860.0,98859.0,0.3608]
[1746671542204,0.00146001,98860.0,98859.0,0.5288]
[1746671544103,0.00146001,98860.0,98859.0,0.5318]
[1746671545400,0.00146001,98860.0,98859.0,0.5308]
[1746671545706,0.00146001,98860.0,98859.0,0.5318]
[1746671546105,0.00146001,98860.0,98859.0,0.5418]
[1746671548298,0.00146001,98860.0,98859.0,0.5408]
[1746671548299,0.20375611,98860.0,98859.0,0.5408]
[1746671548498,0.20375611,98860.0,98859.0,0.5318]
[1746671549099,0.44695611,98860.0,98859.0,0.3638]
[1746671549308,0.24466001,98860.0,98859.0,0.3638]
[1746671549699,0.12356001,98860.0,98859.0,0.3638]
[1746671549895,0.32585611,98860.0,98859.0,0.3638]
[1746671551515,0.32585611,98860.0,98859.0,0.3628]
[1746671551698,0.32585611,98860.0,98859.0,0.3638]
[1746671553110,0.32585611,98860.0,98859.0,0.3628]
[1746671553607,0.12356001,98860.0,98859.0,0.3628]
[1746671553799,0.00146001,98860.0,98859.0,0.3628]
[1746671554114,0.1266,98872.0,98859.0,0.5398]
[1746671554321,0.1266,98872.0,98871.0,0.3608]
[1746671554506,0.3288716,98872.0,98871.0,0.3608]
[1746671555111,0.3288716,98872.0,98871.0,0.5288]
[1746671556213,0.3298716,98872.0,98871.0,0.3608]
[1746671557209,0.3298716,98872.0,98871.0,0.34309087]
[1746671558219,0.3298716,98872.0,98871.0,0.51109087]
[1746671558712,0.61276939,98872.0,98871.0,0.51109087]
[1746671558912,0.28389779,98872.0,98871.0,0.51109087]
[1746671562215,0.28389779,98872.0,98871.0,0.61223087]
[1746671562414,0.1269,98889.0,98873.0,0.0917188]
[1746671562612,0.2022392,98888.0,98885.0,0.3608]
[1746671563209,0.2022424,98887.0,98885.0,0.5288]
[1746671563409,0.2032429,98886.0,98885.0,0.57876809]
[1746671563617,0.2032429,98886.0,98885.0,0.68544809]
[1746671563813,0.2062429,98886.0,98885.0,0.68544809]
[1746671564014,0.004,98886.0,98885.0,0.68544809]
[1746671564520,0.2062429,98886.0,98885.0,0.68544809]
[1746671564917,0.2072429,98886.0,98885.0,0.68544809]
[1746671565113,0.005,98886.0,98885.0,0.51744809]
[1746671565721,0.2062429,98886.0,98885.0,0.41076809]
[1746671566219,0.2092429,98886.0,98885.0,0.57876809]
[1746671566820,0.2092429,98886.0,98885.0,0.21796809]
[1746671567009,0.2022839,98866.0,98857.0,0.10664]
[1746671567214,0.2022839,98866.0,98851.0,0.2457]
[1746671567417,0.2022839,98866.0,98852.0,0.1282]
[1746671567921,0.4629839,98866.0,98852.0,0.1282]
[1746671568223,0.1298,98866.0,98865.0,0.05203026]
[1746671568523,0.3320839,98866.0,98865.0,0.05203026]
[1746671569223,0.3320839,98866.0,98865.0,0.22003026]
[1746671569424,0.3320839,98866.0,98865.0,0.22103026]
[1746671570126,0.3320839,98866.0,98865.0,0.05303026]
[1746671570316,0.3320839,98866.0,98865.0,0.05203026]
[1746671570517,0.3320839,98866.0,98865.0,0.05303026]
[1746671572212,0.3320839,98866.0,98854.0,0.01466]
[1746671572213,0.2023064,98855.0,98854.0,0.01466]
[1746671572515,0.2023186,98849.0,98840.0,0.3608]
[1746671573012,0.2023555,98831.0,98826.0,0.3608]
[1746671573213,0.3703555,98831.0,98828.0,0.01467]
[1746671573622,0.3703555,98831.0,98830.0,0.05544408]
[1746671573825,0.6102555,98831.0,98830.0,0.00451795]
[1746671574024,0.2024026,98808.0,98800.0,0.3608]
[1746671574221,0.2024026,98808.0,98796.0,0.1281]
[1746671574222,0.2024026,98808.0,98792.0,0.3608]
[1746671574423,0.2024272,98796.0,98795.0,0.00101219]
[1746671574834,0.3036472,98796.0,98795.0,0.00101219]
[1746671575128,0.3704272,98796.0,98795.0,0.00101219]
[1746671575319,0.6176272,98796.0,98795.0,0.00101219]
[1746671576219,0.4496272,98796.0,98795.0,0.00101219]
[1746671576414,0.5508472,98796.0,98795.0,0.00101219]
[1746671576624,0.2024436,98788.0,98787.0,0.00151846]
[1746671576833,0.5632436,98788.0,98787.0,0.00151846]
[1746671577527,0.8104436,98788.0,98787.0,0.00151846]
[1746671577727,0.8104436,98788.0,98787.0,0.00751846]
[1746671577923,0.2472,98788.0,98787.0,0.00751846]
[1746671578126,0.1192,98788.0,98787.0,0.01251846]
[1746671578325,0.131,98799.0,98787.0,0.25851846]
[1746671578732,0.1235,98798.0,98789.0,0.13780221]
[1746671579027,0.1235,98798.0,98795.0,0.3608]
[1746671579329,0.1235,98798.0,98796.0,0.246]
[1746671579726,0.3608,98819.0,98797.0,0.101216]
[1746671579923,0.1235,98812.0,98806.0,0.3608]
[1746671580125,0.1235,98812.0,98807.0,0.246]
[1746671580423,0.0015,98825.0,98807.0,0.256]
[1746671580622,0.1235,98824.0,98816.0,0.3608]
[1746671580831,0.0505948,98820.0,98816.0,0.3608]
[1746671581026,0.2545,98819.0,98816.0,0.3608]
[1746671581735,0.2023828,98818.0,98816.0,0.3608]
[1746671581926,0.2545,98819.0,98816.0,0.3608]
[1746671583625,0.2023839,98818.0,98809.0,0.246]
[1746671583827,0.2545,98819.0,98808.0,0.10672]
[1746671584025,0.0505967,98816.0,98808.0,0.10672]
[1746671584231,0.4521901,98815.0,98808.0,0.10672]
[1746671584536,0.2498,98815.0,98808.0,0.10672]
[1746671584934,0.2498,98815.0,98809.0,0.2553]
[1746671585234,0.0505839,98841.0,98814.0,0.3608]
[1746671585533,0.124,98821.0,98815.0,0.1291]
[1746671585733,0.1187,98820.0,98816.0,0.1262]
[1746671586131,0.1187,98820.0,98814.0,0.3608]
[1746671586132,0.124,98819.0,98814.0,0.3608]
[1746671586431,0.2023934,98813.0,98808.0,0.11072]
[1746671586633,0.0505965,98816.0,98808.0,0.11072]
[1746671586634,0.124,98812.0,98808.0,0.11072]
[1746671586832,0.124,98812.0,98809.0,0.2573]
[1746671587034,0.1187,98811.0,98809.0,0.2573]
[1746671587234,0.2867,98811.0,98809.0,0.2573]
[1746671587435,0.1236,98810.0,98809.0,0.2573]
[1746671587833,0.1236,98810.0,98809.0,0.2553]
[1746671588130,0.001,98826.0,98809.0,0.2553]
[1746671588339,0.1251,98825.0,98817.0,0.3608]
[1746671588533,0.1251,98825.0,98818.0,0.2479]
[1746671588933,0.128,98824.0,98818.0,0.2479]
[1746671589241,0.2023821,98818.0,98817.0,0.3608]
[1746671589532,0.3608,98820.0,98809.0,0.002]
[1746671589735,0.2024006,98809.0,98808.0,0.002]
[1746671590332,0.2024292,98795.0,98794.0,0.1263]
[1746671590539,0.2024436,98788.0,98783.0,0.3608]
[1746671590834,0.2024743,98773.0,98772.0,0.36231864]
[1746671591239,0.168,98773.0,98772.0,0.36231864]
[1746671591434,0.3704743,98773.0,98772.0,0.00151864]
[1746671591635,1.0837183,98773.0,98772.0,0.00151864]
[1746671592141,0.2024887,98766.0,98765.0,1e-08]
[1746671592538,0.5537367,98766.0,98765.0,1e-08]
[1746671593040,0.5537367,98766.0,98731.0,0.3608]
[1746671593041,0.2025317,98745.0,98731.0,0.3608]
[1746671593244,0.54923071,98754.0,98731.0,0.40291079]
[1746671593538,0.54923071,98754.0,98731.0,0.3608]
[1746671593539,0.5633317,98745.0,98731.0,0.3608]
[1746671593743,0.2025317,98745.0,98731.0,0.3608]
[1746671594043,0.4302037,98745.0,98736.0,0.2436]
[1746671594242,0.168,98745.0,98744.0,0.00351925]
[1746671594537,0.168,98745.0,98744.0,0.24911925]
[1746671594746,0.7313317,98745.0,98744.0,0.00551925]
[1746671595334,0.8326037,98745.0,98744.0,0.00551925]
[1746671595534,0.168,98745.0,98744.0,0.00551925]
[1746671596137,0.2025317,98745.0,98744.0,0.00551925]
[1746671596334,0.1264,98747.0,98744.0,0.00751925]
[1746671596538,0.2025317,98745.0,98744.0,0.00751925]
[1746671596837,0.2025317,98745.0,98744.0,0.00551925]
[1746671597049,0.220272,98745.0,98721.0,0.249]
[1746671597234,0.131,98744.0,98738.0,0.1285]
[1746671597438,0.168,98745.0,98738.0,0.1285]